{"text_format":"1","workbook":"xlsx","n_sheets":1,"sheets":["FlightLog"],"not_rendered":{"charts":0,"images":8,"macros":1,"external_links":0,"defined_names":5,"comments":0,"pivot_tables":0},"unopened":[],"bounds":{"document_bytes":16777216,"sheet_cells":100000,"rows_first":2000,"rows_last":500,"rows_between":2000,"halvings":0,"cell_chars":16384,"cell_head_chars":4096},"cells_cut":0,"cells_raw":0,"read":"whole","date_system":"1900"}

{"sheet":"FlightLog","index":0,"n_rows":118,"n_cols":30,"rows_kept":118,"cut":false,"hidden":false,"merged":[[11,24,11,26],[12,3,12,4],[12,6,12,7],[12,11,12,12],[12,15,12,16],[12,17,12,18],[12,22,12,23],[12,24,12,26],[6,21,6,22],[6,17,6,20],[8,18,8,19],[7,18,7,19],[7,12,7,15],[8,16,8,17],[8,12,8,15],[9,17,9,19],[9,20,9,21],[9,22,9,23],[7,20,7,26],[8,20,8,26],[9,24,9,26],[9,15,9,16],[0,22,0,23],[1,22,1,23],[2,22,2,23],[3,22,3,23],[5,23,5,26],[4,22,4,23],[0,14,0,18],[1,15,1,16],[4,24,4,26],[4,17,4,18],[0,24,1,26],[1,17,1,18],[2,17,2,18],[3,15,3,16],[3,17,3,18],[2,24,3,26],[4,15,4,16],[2,15,2,16],[5,21,5,22],[0,3,0,6],[5,2,5,7],[6,2,6,7],[2,9,2,10],[4,9,4,10],[3,9,3,10],[1,9,1,10],[0,9,0,13],[0,7,0,8],[1,11,1,12],[2,11,2,12],[3,11,3,12],[4,11,4,12],[5,13,5,16],[6,13,6,16],[6,8,6,10],[5,8,5,10],[5,0,5,1],[6,0,6,1],[7,0,7,1],[8,2,8,3],[8,0,8,1],[9,0,9,4],[9,5,9,6],[9,11,9,12],[8,10,8,11],[9,8,9,9],[7,2,7,3],[7,10,7,11],[7,6,7,9],[8,6,8,9],[17,8,17,9],[15,7,15,9],[17,11,17,12],[16,11,16,12],[15,11,15,12],[15,0,15,1],[16,0,16,1],[17,0,17,1],[14,8,14,9],[14,10,14,13],[10,24,10,26],[14,5,14,6],[14,1,14,4],[15,3,15,4],[15,5,15,6],[13,1,13,4],[13,5,13,6],[13,8,13,9],[13,10,13,13],[10,5,10,6],[10,8,10,9],[11,1,11,2],[12,1,12,2],[13,14,13,17],[10,11,10,12],[10,0,10,4],[10,17,10,19],[10,22,10,23],[11,3,11,4],[11,6,11,7],[11,11,11,12],[11,15,11,18],[11,20,11,21],[11,22,11,23],[17,14,17,23],[15,35,15,36],[19,11,19,12],[19,8,19,9],[16,8,16,9],[15,37,15,39],[16,14,16,23],[15,14,15,23],[3,27,3,30],[6,23,6,26],[6,27,6,28],[7,27,7,28],[8,27,8,28],[5,27,5,28],[14,14,14,17],[13,25,13,26],[14,18,14,21],[14,22,14,24],[14,25,14,26],[10,15,10,16],[7,16,7,17],[13,18,13,21],[13,22,13,24],[5,17,5,20],[30,8,30,9],[30,11,30,12],[31,8,31,9],[31,11,31,12],[30,14,30,23],[31,14,31,23],[28,8,28,9],[28,11,28,12],[28,14,28,23],[29,11,29,12],[29,14,29,23],[28,0,28,1],[29,0,29,1],[30,0,30,1],[31,0,31,1],[32,0,32,1],[33,0,33,1],[34,0,34,1],[35,0,35,1],[36,0,36,1],[44,0,44,1],[44,8,44,9],[44,11,44,12],[44,14,44,23],[41,0,41,1],[41,8,41,9],[41,11,41,12],[41,14,41,23],[38,0,38,1],[38,8,38,9],[38,11,38,12],[38,14,38,23],[40,0,40,1],[40,8,40,9],[40,11,40,12],[40,14,40,23],[42,0,42,1],[42,8,42,9],[42,11,42,12],[42,14,42,23],[43,0,43,1],[43,8,43,9],[43,11,43,12],[43,14,43,23],[53,0,53,1],[53,8,53,9],[53,11,53,12],[53,14,53,23],[50,0,50,1],[50,8,50,9],[50,11,50,12],[50,14,50,23],[47,0,47,1],[47,8,47,9],[47,11,47,12],[47,14,47,23],[49,0,49,1],[49,8,49,9],[49,11,49,12],[49,14,49,23],[51,0,51,1],[51,8,51,9],[51,11,51,12],[51,14,51,23],[52,0,52,1],[52,8,52,9],[52,11,52,12],[52,14,52,23],[62,0,62,1],[62,8,62,9],[62,11,62,12],[62,14,62,23],[59,0,59,1],[59,8,59,9],[59,11,59,12],[59,14,59,23],[56,0,56,1],[56,8,56,9],[56,11,56,12],[56,14,56,23],[58,0,58,1],[58,8,58,9],[58,11,58,12],[58,14,58,23],[60,0,60,1],[60,8,60,9],[60,11,60,12],[60,14,60,23],[61,0,61,1],[61,8,61,9],[61,11,61,12],[61,14,61,23],[71,0,71,1],[71,8,71,9],[71,11,71,12],[71,14,71,23],[68,0,68,1],[68,8,68,9],[68,11,68,12],[68,14,68,23],[65,0,65,1],[65,8,65,9],[65,11,65,12],[65,14,65,23],[67,0,67,1],[67,8,67,9],[67,11,67,12],[67,14,67,23],[69,0,69,1],[69,8,69,9],[69,11,69,12],[69,14,69,23],[70,0,70,1],[70,8,70,9],[70,11,70,12],[70,14,70,23],[80,0,80,1],[80,8,80,9],[80,11,80,12],[80,14,80,23],[77,0,77,1],[77,8,77,9],[77,11,77,12],[77,14,77,23],[74,0,74,1],[74,8,74,9],[74,11,74,12],[74,14,74,23],[76,0,76,1],[76,8,76,9],[76,11,76,12],[76,14,76,23],[78,0,78,1],[78,8,78,9],[78,11,78,12],[78,14,78,23],[79,0,79,1],[79,8,79,9],[79,11,79,12],[79,14,79,23],[89,0,89,1],[89,8,89,9],[89,11,89,12],[89,14,89,23],[86,0,86,1],[86,8,86,9],[86,11,86,12],[86,14,86,23],[83,0,83,1],[83,8,83,9],[83,11,83,12],[83,14,83,23],[85,0,85,1],[85,8,85,9],[85,11,85,12],[85,14,85,23],[87,0,87,1],[87,8,87,9],[87,11,87,12],[87,14,87,23],[88,0,88,1],[88,8,88,9],[88,11,88,12],[88,14,88,23],[98,0,98,1],[98,8,98,9],[98,11,98,12],[98,14,98,23],[95,0,95,1],[95,8,95,9],[95,11,95,12],[95,14,95,23],[92,0,92,1],[92,8,92,9],[92,11,92,12],[92,14,92,23],[94,0,94,1],[94,8,94,9],[94,11,94,12],[94,14,94,23],[96,0,96,1],[96,8,96,9],[96,11,96,12],[96,14,96,23],[97,0,97,1],[97,8,97,9],[97,11,97,12],[97,14,97,23],[107,0,107,1],[107,8,107,9],[107,11,107,12],[107,14,107,23],[104,0,104,1],[104,8,104,9],[104,11,104,12],[104,14,104,23],[101,0,101,1],[101,8,101,9],[101,11,101,12],[101,14,101,23],[103,0,103,1],[103,8,103,9],[103,11,103,12],[103,14,103,23],[105,0,105,1],[105,8,105,9],[105,11,105,12],[105,14,105,23],[106,0,106,1],[106,8,106,9],[106,11,106,12],[106,14,106,23],[22,0,22,1],[23,0,23,1],[24,0,24,1],[25,0,25,1],[25,8,25,9],[25,11,25,12],[25,14,25,23],[26,0,26,1],[27,0,27,1],[26,8,26,9],[26,11,26,12],[27,8,27,9],[27,11,27,12],[26,14,26,23],[27,14,27,23],[24,8,24,9],[24,11,24,12],[24,14,24,23],[22,8,22,9],[22,11,22,12],[23,8,23,9],[23,11,23,12],[22,14,22,23],[23,14,23,23],[18,0,18,1],[18,8,18,9],[18,11,18,12],[18,14,18,23],[19,14,19,23],[20,0,20,1],[21,0,21,1],[21,8,21,9],[21,11,21,12],[21,14,21,23],[19,0,19,1],[20,8,20,9],[20,11,20,12],[20,14,20,23],[33,8,33,9],[33,11,33,12],[33,14,33,23],[39,0,39,1],[39,8,39,9],[39,11,39,12],[39,14,39,23],[29,8,29,9],[37,0,37,1],[37,8,37,9],[37,11,37,12],[37,14,37,23],[36,8,36,9],[36,11,36,12],[36,14,36,23],[34,8,34,9],[34,11,34,12],[35,8,35,9],[35,11,35,12],[34,14,34,23],[35,14,35,23],[32,8,32,9],[32,11,32,12],[32,14,32,23],[45,0,45,1],[45,8,45,9],[45,11,45,12],[45,14,45,23],[46,0,46,1],[46,8,46,9],[46,11,46,12],[46,14,46,23],[48,0,48,1],[48,8,48,9],[48,11,48,12],[48,14,48,23],[54,0,54,1],[54,8,54,9],[54,11,54,12],[54,14,54,23],[55,0,55,1],[55,8,55,9],[55,11,55,12],[55,14,55,23],[57,0,57,1],[57,8,57,9],[57,11,57,12],[57,14,57,23],[63,0,63,1],[63,8,63,9],[63,11,63,12],[63,14,63,23],[64,0,64,1],[64,8,64,9],[64,11,64,12],[64,14,64,23],[66,0,66,1],[66,8,66,9],[66,11,66,12],[66,14,66,23],[72,0,72,1],[72,8,72,9],[72,11,72,12],[72,14,72,23],[73,0,73,1],[73,8,73,9],[73,11,73,12],[73,14,73,23],[75,0,75,1],[75,8,75,9],[75,11,75,12],[75,14,75,23],[81,0,81,1],[81,8,81,9],[81,11,81,12],[81,14,81,23],[82,0,82,1],[82,8,82,9],[82,11,82,12],[82,14,82,23],[84,0,84,1],[84,8,84,9],[84,11,84,12],[84,14,84,23],[90,0,90,1],[90,8,90,9],[90,11,90,12],[90,14,90,23],[91,0,91,1],[91,8,91,9],[91,11,91,12],[91,14,91,23],[93,0,93,1],[93,8,93,9],[93,11,93,12],[93,14,93,23],[99,0,99,1],[99,8,99,9],[99,11,99,12],[99,14,99,23],[100,0,100,1],[100,8,100,9],[100,11,100,12],[100,14,100,23],[102,0,102,1],[102,8,102,9],[102,11,102,12],[102,14,102,23],[108,0,108,1],[108,8,108,9],[108,11,108,12],[108,14,108,23],[109,0,109,1],[109,8,109,9],[109,11,109,12],[109,14,109,23],[111,0,111,1],[111,8,111,9],[111,11,111,12],[111,14,111,23],[110,0,110,1],[110,8,110,9],[110,11,110,12],[110,14,110,23],[117,0,117,1],[117,8,117,9],[117,11,117,12],[117,14,117,23],[112,0,112,1],[112,8,112,9],[112,11,112,12],[112,14,112,23],[114,0,114,1],[114,8,114,9],[114,11,114,12],[114,14,114,23],[115,0,115,1],[115,8,115,9],[115,11,115,12],[115,14,115,23],[116,0,116,1],[116,8,116,9],[116,11,116,12],[116,14,116,23],[113,0,113,1],[113,8,113,9],[113,11,113,12],[113,14,113,23]]}
["Riegl","21-250","FHI","Fugro",null,null,null,{"$f":"AC1","v":"21-301"},null,"Lift Begin",null,null,null,null,"Lift End",null,null,null,null,"Flt","Flt ","Hobbs",null,null,"RIEGL",null,null,null,"21-301","2021-10-28"]
[null,null,null,null,null,null,null,null,"Lift","Airport ",null,"Chocks",null,"Hobbs","Airport ","Chocks",null,"Hobbs",null,"Duration","Hrs","Hrs","     Actvity",null,null,null,null,null,"Crews","2021-10-15T12:27:35"]
[null,null,null,null,null,null,null,null,1,"KRAP",null,"18:08:00",null,2658,"KDIM","19:27:00",null,2659,null,{"$f":"IF(P3=\"\",\"\",IF(P3<L3,P3+1,P3)-L3)","v":"01:19:00"},{"$f":"IF(T3=\"\",\"\",(INT(((INT(T3*1440+1/60))+7)/15)*15)/60)","v":1.25},{"$f":"IF(R3=\"\",\"\",R3-N3)","v":1},"0103-Mob/Demob",null,"FlightLog"]
[null,null,null,null,null,null,null,null,2,null,null,null,null,null,null,null,null,null,null,{"$f":"IF(P4=\"\",\"\",IF(P4<L4,P4+1,P4)-L4)","v":""},{"$f":"IF(T4=\"\",\"\",(INT(((INT(T4*1440+1/60))+7)/15)*15)/60)","v":""},{"$f":"IF(R4=\"\",\"\",R4-N4)","v":""}]
[null,null,null,null,null,null,null,null,3,null,null,null,null,null,null,null,null,null,null,{"$f":"IF(P5=\"\",\"\",IF(P5<L5,P5+1,P5)-L5)","v":""},{"$f":"IF(T5=\"\",\"\",(INT(((INT(T5*1440+1/60))+7)/15)*15)/60)","v":""},{"$f":"IF(R5=\"\",\"\",R5-N5)","v":""},null,null,"AO80-50-00-02"]
["FGI Job #",null,"Project Name",null,null,null,null,null,"System",null,null,null,null,"Pilot #1",null,null,null,"Pilot #2",null,null,null,"Operator #1",null,"Operator #2"]
["33780288",null,"USGS ND SW",null,null,null,null,null,"RIEGL",null,null,null,null,"Maison Collins",null,null,null,"N. Weyrich",null,null,null,"Chris Fought",null,null,null,null,null,""]
["Flight Date",null,"GPS Day",null,"Lift","/ Day","Session ID",null,null,null,"Sun°",null,"Solar Times (UTC)",null,null,null,"Wind Dir°",null,"Wind (knts)"]
["2021-11-01",null,{"$f":"IF(ISBLANK(A9),\" \",CONCATENATE(TEXT(MOD(YEAR(A9),100),\"00\"),\"-\",TEXT(INT(A9)+1-DATEVALUE(CONCATENATE(\"1-Jan-\",YEAR(A9))),\"000\")))","v":"21-305"},null,"mob",null,null,null,null,null,"N/A",null,"N/A"]
["Mission ID    (yymmdd_Sen_Job_Lift)",null,null,null,null,"Aircraft",null,null,"FMS",null,"UTC","AMT (ft)",null,"Speed","km/WPT",null,null,null,null,null,"Ground Temp°C",null,"Data Logger #1",null,"Data Logger #2"]
["211101_043_33780288_mob",null,null,null,null,"N2PN",null,"","CCNS 7",null,-5,7850,null,"<160",1.4390000000000001,""]
["Sensor","Mount",null,null,null,null,"Camera",null,"Lens","Trig","Pwr","PRR Hz",null,"Scan Hz",null,"Altimeter inHg",null,null,null,"Humidity","Flying Temp°C",null,"Camera Logger #1",null,"Camera Logger #2"]
["043","GSM4000",null,"",null,"","RGBn150",null,50,"N/A",100,"N/A",null,350,"",""]
["Base 1 ID","Location",null,null,null,"Rec ID",null,"Ant ID","ARP (m)",null,"Start Time (UTC)",null,null,null,"Stop Time (UTC)",null,null,null,"GPS Filename",null,null,null,"Operator",null,null,"Data"]
[null,null,null,null,null,null,null,"","",null,null,null,null,null,null,null,null,null,null,null,null,null,"",null,null,""]
[null,null,"Flight","Wpt",null,"Distance",null,"UTC",null,null,"Flt","Altitude",null,"Speed",null,null,null,null,null,null,null,null,null,null,null,null,null,"Online"]
["Area",null,"Line #","From","To","Begin","End","Start","End",null,"Dir"," (GPS)",null,"(knots)"," Comments and Conditions",null,null,null,null,null,null,null,null,null,"Sun°","SVs","PDOP","Time"]
[null,null,null,null,null,null,null,null,null,null,null,null,null,null,null,null,null,null,null,null,null,null,null,null,null,null,null,{"$f":"IF(H18=\"\",0,IF(I18=\"\",0,I18-H18))","v":"00:00:00"}]
[null,null,null,null,null,null,null,null,null,null,null,null,null,null,null,null,null,null,null,null,null,null,null,null,null,null,null,{"$f":"IF(H19=\"\",0,IF(I19=\"\",0,I19-H19))","v":"00:00:00"}]
[null,null,null,null,null,null,null,null,null,null,null,null,null,null,null,null,null,null,null,null,null,null,null,null,null,null,null,{"$f":"IF(H20=\"\",0,IF(I20=\"\",0,I20-H20))","v":"00:00:00"}]
[null,null,null,null,null,null,null,null,null,null,null,null,null,null,null,null,null,null,null,null,null,null,null,null,null,null,null,"00:00:00"]
[null,null,null,null,null,null,null,null,null,null,null,null,null,null,null,null,null,null,null,null,null,null,null,null,null,null,null,"00:00:00"]
[null,null,null,null,null,null,null,null,null,null,null,null,null,null,null,null,null,null,null,null,null,null,null,null,null,null,null,"00:00:00"]
[null,null,null,null,null,null,null,null,null,null,null,null,null,null,null,null,null,null,null,null,null,null,null,null,null,null,null,"00:00:00"]
[null,null,null,null,null,null,null,null,null,null,null,null,null,null,null,null,null,null,null,null,null,null,null,null,null,null,null,"00:00:00"]
[null,null,null,null,null,null,null,null,null,null,null,null,null,null,null,null,null,null,null,null,null,null,null,null,null,null,null,"00:00:00"]
[null,null,null,null,null,null,null,null,null,null,null,null,null,null,null,null,null,null,null,null,null,null,null,null,null,null,null,"00:00:00"]
[null,null,null,null,null,null,null,null,null,null,null,null,null,null,null,null,null,null,null,null,null,null,null,null,null,null,null,"00:00:00"]
[null,null,null,null,null,null,null,null,null,null,null,null,null,null,null,null,null,null,null,null,null,null,null,null,null,null,null,"00:00:00"]
[null,null,null,null,null,null,null,null,null,null,null,null,null,null,null,null,null,null,null,null,null,null,null,null,null,null,null,"00:00:00"]
[null,null,null,null,null,null,null,null,null,null,null,null,null,null,null,null,null,null,null,null,null,null,null,null,null,null,null,"00:00:00"]
[null,null,null,null,null,null,null,null,null,null,null,null,null,null,null,null,null,null,null,null,null,null,null,null,null,null,null,"00:00:00"]
[null,null,null,null,null,null,null,null,null,null,null,null,null,null,null,null,null,null,null,null,null,null,null,null,null,null,null,"00:00:00"]
[null,null,null,null,null,null,null,null,null,null,null,null,null,null,null,null,null,null,null,null,null,null,null,null,null,null,null,"00:00:00"]
[null,null,null,null,null,null,null,null,null,null,null,null,null,null,null,null,null,null,null,null,null,null,null,null,null,null,null,"00:00:00"]
[null,null,null,null,null,null,null,null,null,null,null,null,null,null,null,null,null,null,null,null,null,null,null,null,null,null,null,"00:00:00"]
[null,null,null,null,null,null,null,null,null,null,null,null,null,null,null,null,null,null,null,null,null,null,null,null,null,null,null,"00:00:00"]
[null,null,null,null,null,null,null,null,null,null,null,null,null,null,null,null,null,null,null,null,null,null,null,null,null,null,null,"00:00:00"]
[null,null,null,null,null,null,null,null,null,null,null,null,null,null,null,null,null,null,null,null,null,null,null,null,null,null,null,"00:00:00"]
[null,null,null,null,null,null,null,null,null,null,null,null,null,null,null,null,null,null,null,null,null,null,null,null,null,null,null,"00:00:00"]
[null,null,null,null,null,null,null,null,null,null,null,null,null,null,null,null,null,null,null,null,null,null,null,null,null,null,null,"00:00:00"]
[null,null,null,null,null,null,null,null,null,null,null,null,null,null,null,null,null,null,null,null,null,null,null,null,null,null,null,"00:00:00"]
[null,null,null,null,null,null,null,null,null,null,null,null,null,null,null,null,null,null,null,null,null,null,null,null,null,null,null,"00:00:00"]
[null,null,null,null,null,null,null,null,null,null,null,null,null,null,null,null,null,null,null,null,null,null,null,null,null,null,null,"00:00:00"]
[null,null,null,null,null,null,null,null,null,null,null,null,null,null,null,null,null,null,null,null,null,null,null,null,null,null,null,"00:00:00"]
[null,null,null,null,null,null,null,null,null,null,null,null,null,null,null,null,null,null,null,null,null,null,null,null,null,null,null,"00:00:00"]
[null,null,null,null,null,null,null,null,null,null,null,null,null,null,null,null,null,null,null,null,null,null,null,null,null,null,null,"00:00:00"]
[null,null,null,null,null,null,null,null,null,null,null,null,null,null,null,null,null,null,null,null,null,null,null,null,null,null,null,"00:00:00"]
[null,null,null,null,null,null,null,null,null,null,null,null,null,null,null,null,null,null,null,null,null,null,null,null,null,null,null,"00:00:00"]
[null,null,null,null,null,null,null,null,null,null,null,null,null,null,null,null,null,null,null,null,null,null,null,null,null,null,null,"00:00:00"]
[null,null,null,null,null,null,null,null,null,null,null,null,null,null,null,null,null,null,null,null,null,null,null,null,null,null,null,"00:00:00"]
[null,null,null,null,null,null,null,null,null,null,null,null,null,null,null,null,null,null,null,null,null,null,null,null,null,null,null,"00:00:00"]
[null,null,null,null,null,null,null,null,null,null,null,null,null,null,null,null,null,null,null,null,null,null,null,null,null,null,null,"00:00:00"]
[null,null,null,null,null,null,null,null,null,null,null,null,null,null,null,null,null,null,null,null,null,null,null,null,null,null,null,"00:00:00"]
[null,null,null,null,null,null,null,null,null,null,null,null,null,null,null,null,null,null,null,null,null,null,null,null,null,null,null,"00:00:00"]
[null,null,null,null,null,null,null,null,null,null,null,null,null,null,null,null,null,null,null,null,null,null,null,null,null,null,null,"00:00:00"]
[null,null,null,null,null,null,null,null,null,null,null,null,null,null,null,null,null,null,null,null,null,null,null,null,null,null,null,"00:00:00"]
[null,null,null,null,null,null,null,null,null,null,null,null,null,null,null,null,null,null,null,null,null,null,null,null,null,null,null,"00:00:00"]
[null,null,null,null,null,null,null,null,null,null,null,null,null,null,null,null,null,null,null,null,null,null,null,null,null,null,null,"00:00:00"]
[null,null,null,null,null,null,null,null,null,null,null,null,null,null,null,null,null,null,null,null,null,null,null,null,null,null,null,"00:00:00"]
[null,null,null,null,null,null,null,null,null,null,null,null,null,null,null,null,null,null,null,null,null,null,null,null,null,null,null,"00:00:00"]
[null,null,null,null,null,null,null,null,null,null,null,null,null,null,null,null,null,null,null,null,null,null,null,null,null,null,null,"00:00:00"]
[null,null,null,null,null,null,null,null,null,null,null,null,null,null,null,null,null,null,null,null,null,null,null,null,null,null,null,"00:00:00"]
[null,null,null,null,null,null,null,null,null,null,null,null,null,null,null,null,null,null,null,null,null,null,null,null,null,null,null,"00:00:00"]
[null,null,null,null,null,null,null,null,null,null,null,null,null,null,null,null,null,null,null,null,null,null,null,null,null,null,null,"00:00:00"]
[null,null,null,null,null,null,null,null,null,null,null,null,null,null,null,null,null,null,null,null,null,null,null,null,null,null,null,"00:00:00"]
[null,null,null,null,null,null,null,null,null,null,null,null,null,null,null,null,null,null,null,null,null,null,null,null,null,null,null,"00:00:00"]
[null,null,null,null,null,null,null,null,null,null,null,null,null,null,null,null,null,null,null,null,null,null,null,null,null,null,null,"00:00:00"]
[null,null,null,null,null,null,null,null,null,null,null,null,null,null,null,null,null,null,null,null,null,null,null,null,null,null,null,"00:00:00"]
[null,null,null,null,null,null,null,null,null,null,null,null,null,null,null,null,null,null,null,null,null,null,null,null,null,null,null,"00:00:00"]
[null,null,null,null,null,null,null,null,null,null,null,null,null,null,null,null,null,null,null,null,null,null,null,null,null,null,null,"00:00:00"]
[null,null,null,null,null,null,null,null,null,null,null,null,null,null,null,null,null,null,null,null,null,null,null,null,null,null,null,"00:00:00"]
[null,null,null,null,null,null,null,null,null,null,null,null,null,null,null,null,null,null,null,null,null,null,null,null,null,null,null,"00:00:00"]
[null,null,null,null,null,null,null,null,null,null,null,null,null,null,null,null,null,null,null,null,null,null,null,null,null,null,null,"00:00:00"]
[null,null,null,null,null,null,null,null,null,null,null,null,null,null,null,null,null,null,null,null,null,null,null,null,null,null,null,"00:00:00"]
[null,null,null,null,null,null,null,null,null,null,null,null,null,null,null,null,null,null,null,null,null,null,null,null,null,null,null,"00:00:00"]
[null,null,null,null,null,null,null,null,null,null,null,null,null,null,null,null,null,null,null,null,null,null,null,null,null,null,null,"00:00:00"]
[null,null,null,null,null,null,null,null,null,null,null,null,null,null,null,null,null,null,null,null,null,null,null,null,null,null,null,"00:00:00"]
[null,null,null,null,null,null,null,null,null,null,null,null,null,null,null,null,null,null,null,null,null,null,null,null,null,null,null,"00:00:00"]
[null,null,null,null,null,null,null,null,null,null,null,null,null,null,null,null,null,null,null,null,null,null,null,null,null,null,null,"00:00:00"]
[null,null,null,null,null,null,null,null,null,null,null,null,null,null,null,null,null,null,null,null,null,null,null,null,null,null,null,"00:00:00"]
[null,null,null,null,null,null,null,null,null,null,null,null,null,null,null,null,null,null,null,null,null,null,null,null,null,null,null,"00:00:00"]
[null,null,null,null,null,null,null,null,null,null,null,null,null,null,null,null,null,null,null,null,null,null,null,null,null,null,null,"00:00:00"]
[null,null,null,null,null,null,null,null,null,null,null,null,null,null,null,null,null,null,null,null,null,null,null,null,null,null,null,{"$f":"IF(H84=\"\",0,IF(I84=\"\",0,I84-H84))","v":"00:00:00"}]
[null,null,null,null,null,null,null,null,null,null,null,null,null,null,null,null,null,null,null,null,null,null,null,null,null,null,null,"00:00:00"]
[null,null,null,null,null,null,null,null,null,null,null,null,null,null,null,null,null,null,null,null,null,null,null,null,null,null,null,"00:00:00"]
[null,null,null,null,null,null,null,null,null,null,null,null,null,null,null,null,null,null,null,null,null,null,null,null,null,null,null,"00:00:00"]
[null,null,null,null,null,null,null,null,null,null,null,null,null,null,null,null,null,null,null,null,null,null,null,null,null,null,null,"00:00:00"]
[null,null,null,null,null,null,null,null,null,null,null,null,null,null,null,null,null,null,null,null,null,null,null,null,null,null,null,"00:00:00"]
[null,null,null,null,null,null,null,null,null,null,null,null,null,null,null,null,null,null,null,null,null,null,null,null,null,null,null,"00:00:00"]
[null,null,null,null,null,null,null,null,null,null,null,null,null,null,null,null,null,null,null,null,null,null,null,null,null,null,null,"00:00:00"]
[null,null,null,null,null,null,null,null,null,null,null,null,null,null,null,null,null,null,null,null,null,null,null,null,null,null,null,"00:00:00"]
[null,null,null,null,null,null,null,null,null,null,null,null,null,null,null,null,null,null,null,null,null,null,null,null,null,null,null,"00:00:00"]
[null,null,null,null,null,null,null,null,null,null,null,null,null,null,null,null,null,null,null,null,null,null,null,null,null,null,null,"00:00:00"]
[null,null,null,null,null,null,null,null,null,null,null,null,null,null,null,null,null,null,null,null,null,null,null,null,null,null,null,"00:00:00"]
[null,null,null,null,null,null,null,null,null,null,null,null,null,null,null,null,null,null,null,null,null,null,null,null,null,null,null,"00:00:00"]
[null,null,null,null,null,null,null,null,null,null,null,null,null,null,null,null,null,null,null,null,null,null,null,null,null,null,null,"00:00:00"]
[null,null,null,null,null,null,null,null,null,null,null,null,null,null,null,null,null,null,null,null,null,null,null,null,null,null,null,"00:00:00"]
[null,null,null,null,null,null,null,null,null,null,null,null,null,null,null,null,null,null,null,null,null,null,null,null,null,null,null,"00:00:00"]
[null,null,null,null,null,null,null,null,null,null,null,null,null,null,null,null,null,null,null,null,null,null,null,null,null,null,null,"00:00:00"]
[null,null,null,null,null,null,null,null,null,null,null,null,null,null,null,null,null,null,null,null,null,null,null,null,null,null,null,"00:00:00"]
[null,null,null,null,null,null,null,null,null,null,null,null,null,null,null,null,null,null,null,null,null,null,null,null,null,null,null,"00:00:00"]
[null,null,null,null,null,null,null,null,null,null,null,null,null,null,null,null,null,null,null,null,null,null,null,null,null,null,null,"00:00:00"]
[null,null,null,null,null,null,null,null,null,null,null,null,null,null,null,null,null,null,null,null,null,null,null,null,null,null,null,"00:00:00"]
[null,null,null,null,null,null,null,null,null,null,null,null,null,null,null,null,null,null,null,null,null,null,null,null,null,null,null,"00:00:00"]
[null,null,null,null,null,null,null,null,null,null,null,null,null,null,null,null,null,null,null,null,null,null,null,null,null,null,null,"00:00:00"]
[null,null,null,null,null,null,null,null,null,null,null,null,null,null,null,null,null,null,null,null,null,null,null,null,null,null,null,"00:00:00"]
[null,null,null,null,null,null,null,null,null,null,null,null,null,null,null,null,null,null,null,null,null,null,null,null,null,null,null,"00:00:00"]
[null,null,null,null,null,null,null,null,null,null,null,null,null,null,null,null,null,null,null,null,null,null,null,null,null,null,null,"00:00:00"]
[null,null,null,null,null,null,null,null,null,null,null,null,null,null,null,null,null,null,null,null,null,null,null,null,null,null,null,"00:00:00"]
[null,null,null,null,null,null,null,null,null,null,null,null,null,null,null,null,null,null,null,null,null,null,null,null,null,null,null,"00:00:00"]
[null,null,null,null,null,null,null,null,null,null,null,null,null,null,null,null,null,null,null,null,null,null,null,null,null,null,null,"00:00:00"]
[null,null,null,null,null,null,null,null,null,null,null,null,null,null,null,null,null,null,null,null,null,null,null,null,null,null,null,"00:00:00"]
[null,null,null,null,null,null,null,null,null,null,null,null,null,null,null,null,null,null,null,null,null,null,null,null,null,null,null,"00:00:00"]
[null,null,null,null,null,null,null,null,null,null,null,null,null,null,null,null,null,null,null,null,null,null,null,null,null,null,null,"00:00:00"]
[null,null,null,null,null,null,null,null,null,null,null,null,null,null,null,null,null,null,null,null,null,null,null,null,null,null,null,"00:00:00"]
[null,null,null,null,null,null,null,null,null,null,null,null,null,null,null,null,null,null,null,null,null,null,null,null,null,null,null,"00:00:00"]
[null,null,null,null,null,null,null,null,null,null,null,null,null,null,null,null,null,null,null,null,null,null,null,null,null,null,null,"00:00:00"]